bitfinex-derivatives/quotes_BNBF0:USTF0_20250425
["timestamp","ask_amount","ask_price","bid_price","bid_amount"]
[1745546710303,1.26661249,604.17,601.98,0.30477274]
[1745546710501,0.28870683,604.15,601.98,0.30477274]
[1745546710908,1.26661249,604.04,601.98,0.30477274]
[1745546711301,1.26661249,604.04,601.97,1.285]
[1745546711503,1.26661249,604.04,601.98,0.30480889]
[1745546713211,1.26661249,604.04,601.99,1.072]
[1745546713404,1.26661249,604.04,602.0,0.30480889]
[1745546713602,0.28873917,604.03,602.0,0.30480889]
[1745546716013,0.28873917,604.03,602.01,0.30479403]
[1745546716314,1.26661249,604.21,602.02,0.30479403]
[1745546716515,0.28870923,604.02,602.0,0.30479403]
[1745546716817,1.26661249,604.21,602.01,0.30479403]
[1745546717012,1.26661249,604.21,602.02,0.30479403]
[1745546717213,1.26661249,604.21,602.03,0.30479403]
[1745546717410,1.26661249,604.21,601.99,1.072]
[1745546717609,0.28870204,604.2,602.0,0.30477101]
[1745546718308,1.26661249,604.11,602.0,0.30477101]
[1745546718916,1.26661249,604.11,601.99,1.072]
[1745546719112,1.26661249,604.11,602.0,0.30476748]
[1745546719513,0.28871402,604.1,602.0,0.30476748]
[1745546720612,0.28871402,604.1,602.01,0.30476694]
[1745546720813,0.28871402,604.1,602.02,0.30476694]
[1745546721008,0.28871402,604.1,602.03,0.30476694]
[1745546721213,0.28871402,604.1,602.0,0.30476694]
[1745546721409,0.28871402,604.1,602.01,0.30476694]
[1745546721717,0.28871402,604.1,602.02,0.30476694]
[1745546721923,0.28871402,604.1,601.99,1.072]
[1745546722116,0.28871402,604.1,602.0,0.30474762]
[1745546723511,0.28871402,604.1,601.99,1.072]
[1745546723710,0.28871402,604.1,602.01,1.084]
[1745546723914,0.28871402,604.1,602.02,0.30474364]
[1745546724511,0.28871402,604.1,602.02,1.23374364]
[1745546724716,0.28871402,604.1,602.03,0.30474364]
[1745546725117,0.28871402,604.1,602.04,0.30475614]
[1745546725318,1.26661249,604.14,602.03,0.30475614]
[1745546725518,2.15500042,604.8,602.02,0.929]
[1745546725519,1.26661249,603.97,602.04,0.30475614]
[1745546725814,1.26661249,603.97,602.05,0.30475614]
[1745546726017,1.26661249,603.97,602.02,0.929]
[1745546726018,1.26661249,603.97,602.03,0.30475614]
[1745546726214,1.26661249,603.97,602.04,0.30475614]
[1745546726419,1.26661249,603.97,602.03,0.30475614]
[1745546726619,1.26661249,603.97,602.04,0.30475614]
[1745546726821,1.26661249,603.97,602.03,0.30475614]
[1745546727120,1.26661249,603.97,602.04,0.30475614]
[1745546727321,1.26661249,603.97,602.05,0.30475614]
[1745546727515,1.26661249,603.97,602.03,0.30475614]
[1745546727718,1.26661249,603.97,602.04,0.30475614]
[1745546727917,1.26661249,603.97,602.03,0.30475614]
[1745546728119,1.26661249,603.97,602.04,0.30469828]
[1745546728319,1.26661249,604.55,602.03,0.30469828]
[1745546728619,0.28869366,603.96,602.03,0.30469828]
[1745546728921,1.26661249,604.55,602.03,0.30469828]
[1745546729521,1.26661249,604.55,602.02,0.929]
[1745546729720,0.28862422,604.54,602.03,0.30469522]
[1745546731222,1.26661249,604.58,602.03,0.30469522]
[1745546731722,0.28862063,604.57,602.03,0.30469522]
[1745546733624,1.26661249,604.48,602.03,0.30469522]
[1745546734022,1.26661249,604.48,602.02,0.929]
[1745546734217,1.26661249,604.48,602.03,0.30471112]
[1745546734616,0.2886326,604.47,602.03,0.30471112]
[1745546736528,1.26661249,604.44,602.03,0.30471112]
[1745546737628,0.28863739,604.43,602.03,0.30471112]
[1745546740134,1.26661249,604.03,602.02,1.21763739]
[1745546740329,1.26661249,604.03,602.03,0.30476053]
[1745546740527,0.28871282,604.02,602.03,0.30476053]
[1745546740931,0.28871282,604.02,602.0,0.30476053]
[1745546741132,0.28871282,604.02,602.01,0.30476053]
[1745546741334,0.28871282,604.02,602.0,0.30476053]
[1745546741532,0.28871282,604.02,602.01,0.30476053]
[1745546741833,0.28871282,604.02,602.02,0.30476371]
[1745546742027,0.28871282,604.02,602.03,0.30476371]
[1745546742226,0.28871282,604.02,602.04,0.30476371]
[1745546742227,1.26661249,604.01,602.04,0.30476371]
[1745546742429,1.26661249,604.01,602.0,0.30476371]
[1745546742733,1.26661249,604.01,602.01,0.30476371]
[1745546742933,1.26661249,604.01,602.0,0.30476371]
[1745546743130,1.26661249,604.01,601.99,0.28871282]
[1745546743329,1.26661249,604.01,602.0,0.30475786]
[1745546744335,1.55532531,604.02,602.0,0.30475786]
[1745546744732,1.55532531,604.02,602.01,0.30474896]
[1745546744935,1.55532531,604.02,602.02,0.30474896]
[1745546745131,1.55532531,604.02,602.03,0.30474896]
[1745546745434,1.55532531,604.02,602.04,0.30474896]
[1745546745734,1.55532531,604.02,602.05,0.30474896]
[1745546745937,1.55532531,604.02,602.0,0.30474896]
[1745546746138,1.55532531,604.02,602.01,0.30474896]
[1745546746336,1.26661249,604.02,602.02,0.3047525]
[1745546746535,1.26661249,604.02,601.91,0.3047525]
[1745546746736,0.28871522,604.01,601.99,0.28871522]
[1745546746939,0.28871522,604.01,602.0,0.3047525]
[1745546747139,0.28871522,604.01,601.91,0.3047525]
[1745546747339,0.28871522,604.01,601.94,1.05417052]
[1745546747534,0.28871522,604.01,601.95,0.3047525]
[1745546747734,0.28871522,604.01,601.94,1.05417052]
[1745546747937,0.28871522,604.01,601.95,0.30474911]
[1745546748138,0.28871522,604.01,601.95,0.59345954]
[1745546748336,0.28871522,604.01,601.96,0.30474911]
[1745546748840,0.28871522,604.01,602.0,1.05417052]
[1745546749035,0.28871522,604.01,602.01,0.30474911]
[1745546749239,1.26661249,604.03,602.0,1.05417052]
[1745546749440,1.26661249,604.03,602.01,0.30474778]
[1745546749641,0.28871282,604.0,602.01,0.30474778]
[1745546750743,0.28871282,604.0,602.0,1.05417052]
[1745546751046,0.28871282,604.0,602.01,0.30474749]
[1745546751443,1.26661249,603.99,602.04,1.05417052]
[1745546751641,1.26661249,603.99,602.05,0.30474749]
[1745546752241,1.26661249,603.99,602.04,1.05417052]
[1745546752442,1.26661249,603.99,602.05,0.30475109]
[1745546752638,0.28871282,603.98,602.05,0.30475109]
[1745546753945,1.26661249,603.94,602.06,1.05417052]
[1745546754137,1.26661249,603.94,602.07,0.30475109]
[1745546755644,0.28871641,603.93,602.07,0.30475109]
[1745546756743,0.28871641,603.93,602.06,1.05417052]
[1745546756945,0.28871641,603.93,602.07,0.30475041]
[1745546757145,0.28871641,603.93,602.08,0.30475041]
[1745546757338,0.28871641,603.93,602.09,0.30475041]
[1745546757644,0.28871641,603.93,602.1,0.30475041]
[1745546757845,0.28871641,603.93,602.06,0.30475041]
[1745546758039,0.28871641,603.93,602.07,0.30475041]
[1745546758242,1.26661249,603.96,602.05,1.05417052]
[1745546758439,1.26661249,603.96,602.06,0.30475028]
[1745546758643,0.28871522,603.95,602.06,0.30475028]
[1745546760651,1.26661249,603.91,602.07,1.05417052]
[1745546760850,1.26661249,603.91,602.08,0.30475028]
[1745546761051,1.26661249,603.91,602.09,0.30474421]
[1745546761253,1.26661249,603.91,602.08,0.30474421]
[1745546761550,1.26661249,603.91,602.09,0.30474421]
[1745546761753,0.28870923,603.9,602.08,0.30474421]
[1745546761955,0.28870923,603.9,602.09,0.30474421]
[1745546762147,0.28870923,603.9,602.1,0.30474421]
[1745546762346,0.28870923,603.9,602.07,1.05417052]
[1745546762545,0.28870923,603.9,602.08,0.30474421]
[1745546763154,0.28870923,603.9,602.08,1.35891473]
[1745546763446,0.28870923,603.9,602.09,0.30474421]
[1745546764254,1.26661249,603.98,602.09,0.30474421]
[1745546764749,0.28869965,603.97,602.09,0.30474421]
[1745546764951,1.26661249,603.85,602.09,0.30474421]
[1745546765154,1.26661249,603.85,602.13,1.05417052]
[1745546765348,1.26661249,603.85,602.14,0.30474421]
[1745546766850,1.26661249,603.85,602.13,1.05417052]
[1745546767050,1.26661249,603.85,602.14,0.30475591]
[1745546767449,1.26661249,603.82,602.14,0.30475591]
[1745546767648,1.26661249,603.82,602.15,0.30475591]
[1745546767853,1.26661249,603.82,602.13,0.30475591]
[1745546768052,1.26661249,603.82,602.14,0.30475591]
[1745546768255,1.26661249,603.82,602.13,0.30475591]
[1745546768451,1.26661249,603.82,602.14,0.3047618]
[1745546768655,1.26661249,603.82,602.15,0.3047618]
[1745546768856,1.26661249,603.82,602.16,0.3047618]
[1745546769154,1.26661249,603.82,602.17,0.3047618]
[1745546769355,1.26661249,603.82,602.13,0.3047618]
[1745546769551,1.26661249,603.82,602.14,0.3047618]
[1745546769756,1.26661249,603.82,602.15,0.3047618]
[1745546769957,1.26661249,603.82,602.13,0.3047618]
[1745546770156,1.26661249,603.82,602.12,1.05417052]
[1745546770657,0.2887236,603.81,602.12,1.05417052]
[1745546770958,1.55533609,603.81,602.09,1.05417052]
[1745546773259,1.26661249,603.81,602.09,1.05417052]
[1745546773560,0.28872839,603.8,602.09,1.05417052]
[1745546773860,0.28872839,603.8,602.08,0.93]
[1745546774059,0.28872839,603.8,602.09,0.30475941]
[1745546774358,0.28872839,603.8,602.08,0.93]
[1745546774558,0.28872839,603.8,602.09,0.30475941]
[1745546775859,0.28872839,603.8,602.08,0.93]
[1745546776160,0.28872839,603.8,602.09,0.30474878]
[1745546776354,1.26661249,604.19,602.09,0.30474878]
[1745546776554,0.28868408,603.79,602.09,0.30474878]
[1745546776754,1.26661249,604.19,602.09,0.30474878]
[1745546778258,1.26661249,604.23,602.09,0.30474878]
[1745546778557,0.28868408,604.18,602.09,0.30474878]
[1745546779264,0.28868408,604.18,602.08,0.93]
[1745546779556,0.28868408,604.18,602.09,0.30475556]
[1745546780460,0.28868408,604.18,602.1,0.30475937]
[1745546780661,0.28868408,604.18,602.11,0.30475937]
[1745546780961,0.28868408,604.18,602.12,0.30475937]
[1745546781155,0.28868408,604.18,602.09,0.30475937]
[1745546781355,0.28868408,604.18,602.1,0.30475937]
[1745546781555,0.28868408,604.18,602.11,0.30475937]
[1745546781756,0.28868408,604.18,602.12,0.30475937]
[1745546781962,0.28868408,604.18,602.09,0.30475937]
[1745546782158,0.28868408,604.18,602.1,0.30475937]
[1745546782456,1.26661249,604.21,602.11,0.30475937]
[1745546782662,0.28868169,604.17,602.12,0.30475937]
[1745546782958,0.28868169,604.17,602.13,0.30475937]
[1745546783160,1.26661249,603.84,602.15,1.05417052]
[1745546783356,1.26661249,603.84,602.16,0.30475937]
[1745546783560,1.26661249,603.84,602.17,0.30475884]
[1745546783757,1.26661249,603.84,602.16,0.30475884]
[1745546784964,1.26661249,603.84,602.15,1.05417052]
[1745546785263,1.26661249,603.84,602.16,0.30477188]
[1745546787262,1.26661249,603.82,602.16,0.30477188]
[1745546787464,1.26661249,603.82,602.17,0.30477188]
[1745546787663,1.26661249,603.82,602.18,0.30477188]
[1745546787856,1.26661249,603.82,602.19,0.30477188]
[1745546788055,1.26661249,603.82,602.09,1.05417052]
[1745546788258,1.26661249,603.82,602.1,0.30477002]
[1745546788659,0.28873438,603.81,602.1,0.30477002]
[1745546789164,1.55534687,603.81,602.1,1.35894054]
[1745546789358,1.55534687,603.81,602.11,0.30477002]
[1745546789559,1.55534687,603.81,602.1,1.05417052]
[1745546789759,1.55534687,603.81,602.11,0.30476961]
[1745546791063,1.55534687,603.81,602.1,1.05417052]
[1745546791264,1.26661249,603.81,602.11,0.30476777]
[1745546791560,1.26661249,603.81,602.11,1.19476777]
[1745546791760,0.28873438,603.8,602.12,0.30476777]
[1745546791965,0.28873438,603.8,602.12,1.57476777]
[1745546792162,0.28873438,603.8,602.13,0.30476777]
[1745546792665,0.28873438,603.8,602.14,0.30477117]
[1745546792859,0.28873438,603.8,602.13,0.30477117]
[1745546793063,0.28873438,603.8,602.14,0.30477117]
[1745546793264,0.28873438,603.8,602.13,0.30477117]
[1745546793461,0.28873438,603.8,602.14,0.30477117]
[1745546793664,0.28873438,603.8,602.13,0.30477117]
[1745546793866,0.28873438,603.8,602.14,0.30477117]
[1745546794068,0.28873438,603.8,602.12,1.27]
[1745546794263,1.26661249,603.83,602.13,0.30477883]
[1745546794662,0.28874396,603.82,602.13,0.30477883]
[1745546795168,1.26661249,603.78,602.13,0.30477883]
[1745546797168,1.26661249,603.78,602.12,1.27]
[1745546797464,1.26661249,603.78,602.13,0.30478207]
[1745546797668,0.28874995,603.77,602.13,0.30478207]
[1745546798365,1.26661249,603.67,602.13,0.30478207]
[1745546800767,0.28877032,603.66,602.13,0.30478207]
[1745546802066,0.28877032,603.66,602.12,0.30478207]
[1745546802271,0.28877032,603.66,602.13,0.30478207]
[1745546802470,0.28877032,603.66,602.11,1.05417052]
[1745546802471,0.28877032,603.66,602.12,0.30478207]
[1745546802666,0.28877032,603.66,602.13,0.30478207]
[1745546802971,0.28877032,603.66,602.14,0.30478207]
[1745546803171,0.28877032,603.66,602.11,1.05417052]
[1745546803172,0.28877032,603.66,602.12,0.30478207]
[1745546803373,1.26661249,603.69,602.13,0.30478207]
[1745546803575,0.28876912,603.65,602.12,0.30478207]
[1745546803768,0.28876912,603.65,602.13,0.30479672]
[1745546803971,0.28876912,603.65,602.11,1.05417052]
[1745546803972,0.28876912,603.65,602.14,0.30479672]
[1745546804169,0.28876912,603.65,602.15,0.30479672]
[1745546804367,0.28876912,603.65,602.16,0.30479672]
[1745546804573,0.28876912,603.65,602.12,0.30479672]
[1745546804774,0.28876912,603.65,602.05,1.05417052]
[1745546804972,0.28876912,603.65,602.06,0.30481762]
[1745546806176,0.28876912,603.65,602.06,1.55581762]
[1745546806370,1.26661249,603.73,602.06,3.87881762]
[1745546806569,0.28878949,603.64,602.06,3.574]
[1745546806776,1.26661249,603.73,602.06,3.574]
[1745546807172,1.26661249,603.66,602.06,3.574]
[1745546807575,1.26661249,603.66,602.06,4.952]
[1745546809671,1.26661249,603.88,602.06,4.952]
[1745546810177,0.28877871,603.87,602.06,4.952]
[1745546812382,1.26661249,604.01,602.06,4.952]
[1745546812682,0.28877871,603.86,602.06,4.952]
[1745546812878,1.26661249,604.01,602.06,4.952]
[1745546813578,0.28876313,604.0,602.06,4.952]
[1745546815182,1.26661249,604.01,602.06,4.952]
[1745546815486,0.28876313,603.99,602.06,4.952]
[1745546818283,1.26661249,604.02,602.06,4.952]
[1745546818477,0.28877152,603.98,602.06,4.952]
[1745546819281,1.26661249,603.96,602.06,4.952]
[1745546821485,1.26661249,603.85,602.06,4.952]
[1745546824188,1.26661249,603.71,602.06,4.952]
[1745546824682,0.28883743,603.7,602.06,4.952]
[1745546831391,1.26661249,603.58,602.06,4.952]
[1745546833695,0.28888418,603.57,602.06,4.952]
[1745546836298,1.26661249,603.71,602.06,4.952]
[1745546836598,0.2888686,603.56,602.06,4.952]
[1745546836791,1.26661249,603.71,602.06,4.952]
[1745546838602,0.28883983,603.7,602.06,4.952]
[1745546839302,1.26661249,603.71,602.06,4.952]
[1745546839596,0.28883983,603.69,602.06,4.952]
[1745546842299,1.26661249,604.08,602.06,4.952]
[1745546842505,1.26661249,604.02,602.06,4.952]
[1745546842700,0.28879548,603.68,602.06,4.952]
[1745546842898,1.26661249,604.02,602.06,4.952]
[1745546844005,0.28880267,604.01,602.06,4.952]
[1745546844907,1.26661249,603.9,602.06,4.952]
[1745546845707,0.28881705,603.89,602.06,4.952]
[1745546848111,1.26661249,603.88,602.06,4.952]
[1745546848613,0.28881945,603.87,602.06,4.952]
[1745546851313,1.26661249,603.92,602.06,4.952]
[1745546851609,0.28881466,603.86,602.06,4.952]
[1745546854318,1.26661249,603.91,602.06,4.952]
[1745546854616,0.28884462,603.85,602.06,4.952]
[1745546855118,1.26661249,603.81,602.06,4.952]
[1745546856717,1.26661249,603.81,601.45,0.28884462]
[1745546856915,1.26661249,603.81,601.46,0.3050051]
[1745546857817,1.26661249,603.78,601.46,0.3050051]
[1745546858617,1.26661249,603.78,601.45,0.28884462]
[1745546858818,1.26661249,603.78,601.46,0.30500077]
[1745546860217,1.26661249,603.81,601.46,0.30500077]
[1745546860618,1.26661249,603.81,601.33,0.30500077]
[1745546860814,0.28894175,603.8,601.47,2.691]
[1745546861018,0.28894175,603.8,601.48,0.30500077]
[1745546861723,0.28894175,603.8,601.47,2.691]
[1745546861921,0.28894175,603.8,601.48,0.30500713]
[1745546862122,0.28894175,603.8,601.48,2.22800713]
[1745546862321,0.28894175,603.8,601.49,0.30500713]
[1745546862522,1.26661249,603.47,601.49,0.30500713]
[1745546863622,0.28897894,603.46,601.49,0.30500713]
[1745546864825,0.28897894,603.46,601.48,2.97717052]
[1745546865024,0.28897894,603.46,601.49,0.3050061]
[1745546865925,0.28897894,603.46,601.55,1.05417052]
[1745546865926,1.26661249,603.31,601.55,1.05417052]
[1745546866125,1.26661249,603.31,601.56,0.3050061]
[1745546866629,0.28898974,603.3,601.56,0.3050061]
[1745546869126,0.28898974,603.3,601.5,0.3050061]
[1745546869428,1.26661249,603.49,601.49,1.05417052]
[1745546869727,0.28897534,603.29,601.5,0.30503241]
[1745546869928,1.26661249,603.49,601.5,0.30503241]
[1745546871029,1.26661249,603.49,601.49,1.05417052]
[1745546871228,1.26661249,603.46,601.5,1.35918771]
[1745546871527,1.26661249,603.46,601.51,0.30501719]
[1745546871728,0.28896334,603.45,601.51,0.30501719]
[1745546872229,1.26661249,603.46,601.51,0.30501719]
[1745546872629,1.26661249,603.46,601.5,1.05417052]
[1745546872630,0.28895375,603.44,601.5,1.05417052]
[1745546872831,0.28895375,603.44,601.51,0.30499805]
[1745546874536,1.26661249,603.41,601.62,1.05417052]
[1745546874835,1.26661249,603.41,601.63,0.30499805]
[1745546875635,0.28894535,603.4,601.63,0.30499805]
[1745546877735,0.28894535,603.4,601.56,0.30499805]
[1745546877934,0.28894535,603.4,601.57,0.30499805]
[1745546878137,0.28894535,603.4,601.58,0.30499805]
[1745546878436,1.26661249,603.56,601.59,0.30499805]
[1745546878631,1.26661249,603.56,601.56,0.30499805]
[1745546878833,0.28893575,603.39,601.55,1.05417052]
[1745546879035,1.26661249,603.56,601.56,0.30499301]
[1745546880639,0.28893575,603.55,601.56,0.30499301]
[1745546881240,0.28893575,603.55,601.56,1.35916353]
[1745546881439,0.28893575,603.55,601.57,0.30499301]
[1745546881739,0.28893575,603.55,601.58,0.909]
[1745546882038,0.28893575,603.55,601.59,0.30499301]
[1745546883040,0.28893575,603.55,601.58,0.909]
[1745546883237,0.28893575,603.55,601.59,0.30499258]
[1745546883941,1.26661249,603.52,601.59,1.3591631]
[1745546884138,1.26661249,603.52,601.6,0.30499258]
[1745546886343,1.26661249,603.53,601.6,0.30499258]
[1745546887745,1.26661249,603.53,601.59,1.05417052]
[1745546887945,1.26661249,603.53,601.61,1.129]
[1745546888145,1.26661249,603.53,601.62,0.30499299]
[1745546888848,1.26661249,603.53,601.66,1.05417052]
[1745546888849,1.26661249,603.41,601.66,1.05417052]
[1745546889042,1.26661249,603.41,601.67,0.30499299]
[1745546889347,1.26661249,603.41,601.68,0.30499579]
[1745546889551,1.26661249,603.41,601.67,0.30499579]
[1745546889748,1.26661249,603.41,601.68,0.30499579]
[1745546889947,1.26661249,603.41,601.67,0.30499579]
[1745546890148,1.26661249,603.41,601.68,0.30499579]
[1745546890348,1.26661249,603.41,601.69,0.30499579]
[1745546890542,1.26661249,603.41,601.67,0.30499579]
[1745546890746,0.28894055,603.4,601.68,0.30499579]
[1745546891049,1.26661249,603.35,601.68,1.05417052]
[1745546891249,1.26661249,603.35,601.69,0.30499579]
[1745546893551,0.28894535,603.34,601.69,1.35916631]
[1745546893850,0.28894535,603.34,601.7,0.30499579]
[1745546896347,1.26661249,603.38,601.69,0.30499579]
[1745546896652,0.28894175,603.33,601.69,0.30499579]
[1745546897254,0.28894175,603.33,601.68,1.05417052]
[1745546897446,0.28894175,603.33,601.69,0.30498715]
[1745546898652,0.28894175,603.33,601.67,0.30498715]
[1745546899248,1.26661249,603.42,601.67,0.30498715]
[1745546899553,0.28893935,603.32,601.67,0.30498715]
[1745546899854,1.26661249,603.42,601.67,0.30498715]
[1745546900152,1.26661249,603.42,601.66,1.05417052]
[1745546900954,2.15500042,604.04,601.66,1.05417052]
[1745546900955,1.26661249,603.37,601.66,1.05417052]
[1745546901154,1.26661249,603.37,601.69,1.05417052]
[1745546901655,0.28894175,603.36,601.69,1.05417052]
[1745546902354,1.26661249,603.37,601.69,1.05417052]
[1745546902748,1.26661249,603.37,601.7,0.30499365]
[1745546903356,1.26661249,603.35,601.7,0.30499365]
[1745546904657,0.28894415,603.34,601.7,0.30499365]
[1745546905353,1.26661249,603.35,601.7,0.30499365]
[1745546905557,0.28894415,603.33,601.7,0.30499365]
[1745546905754,0.28894415,603.33,601.69,1.05417052]
[1745546905954,0.28894415,603.33,601.7,0.30498754]
[1745546906157,0.28894415,603.33,601.7,1.63498754]
[1745546906458,0.28894415,603.33,601.71,0.30498754]
[1745546908359,1.26661249,603.34,601.71,0.30498754]
[1745546908561,0.28894415,603.32,601.71,0.30498754]
[1745546910561,0.28894415,603.32,601.7,1.33]
[1745546910761,0.28894415,603.32,601.72,1.359]
[1745546910964,0.28894415,603.32,601.73,0.30502009]
[1745546911262,0.28894415,603.32,601.72,1.359]
[1745546911463,1.26661249,603.37,601.73,0.30502009]
[1745546911761,0.28895974,603.31,601.72,1.359]
[1745546912363,0.28895974,603.31,601.73,1.108]
[1745546913062,0.28895974,603.31,601.74,1.378]
[1745546917460,1.26661249,603.37,601.74,1.378]
[1745546917663,0.28895255,603.3,601.74,1.378]
[1745546920366,1.26661249,603.35,601.74,1.378]
[1745546920759,0.28897414,603.29,601.74,1.378]
[1745546922565,0.28897414,603.29,601.48,1.05417052]
[1745546922768,0.28897414,603.29,601.49,0.30506786]
[1745546922965,0.28897414,603.29,601.43,0.30506786]
[1745546923265,1.26661249,603.37,601.44,0.2988593]
[1745546923463,1.26661249,603.37,601.42,1.05417052]
[1745546923662,0.28903174,603.28,601.42,1.05417052]
[1745546924064,1.26661249,603.37,601.42,1.05417052]
[1745546924265,1.26661249,603.37,601.43,0.30510838]
[1745546925669,0.28903654,603.36,601.43,0.30510838]
[1745546925970,1.26661249,603.28,601.43,0.30510838]
[1745546926167,1.26661249,603.28,601.36,0.30510838]
[1745546926368,1.26661249,603.28,601.37,0.30510838]
[1745546926565,0.28905575,603.27,601.38,0.30510838]
[1745546926766,0.28905575,603.27,601.36,0.30510838]
[1745546926966,0.28905575,603.27,601.37,0.30510838]
[1745546927261,0.28905575,603.27,601.35,1.05417052]
[1745546927262,0.28905575,603.27,601.38,0.30510838]
[1745546927461,0.28905575,603.27,601.35,1.05417052]
[1745546927462,0.28905575,603.27,601.39,0.30510838]
[1745546927665,0.28905575,603.27,601.36,0.30510838]
[1745546927863,0.28905575,603.27,601.37,0.30510838]
[1745546928068,0.28905575,603.27,601.38,0.30510838]
[1745546928269,0.28905575,603.27,601.36,0.30510838]
[1745546928462,0.28905575,603.27,601.37,0.30510838]
[1745546928667,0.28905575,603.27,601.37,0.94]
[1745546928863,0.28905575,603.27,601.38,1.28510838]
[1745546929066,0.28905575,603.27,601.39,0.30510838]
[1745546929471,1.26661249,603.39,601.4,1.163]
[1745546929669,0.28905575,603.26,601.41,0.30510838]
[1745546929970,1.26661249,603.39,601.41,0.30510838]
[1745546930670,0.28905335,603.38,601.41,0.30510838]
[1745546932975,0.28905335,603.38,601.4,2.477]
[1745546933175,0.28905335,603.38,601.41,0.30513921]
[1745546935279,1.26661249,603.4,601.41,0.30513921]
[1745546935673,0.28905935,603.37,601.41,0.30513921]
[1745546936173,0.28905935,603.37,601.4,2.477]
[1745546936373,0.28905935,603.37,601.41,0.30515662]
[1745546937080,1.26661249,603.33,601.41,0.30515662]
[1745546938682,0.28906776,603.32,601.41,0.30515662]
[1745546939882,1.26661249,603.28,601.41,0.30515662]
[1745546940783,1.26661249,603.28,601.4,2.477]
[1745546940975,1.26661249,603.28,601.42,0.30515534]
[1745546941178,1.26661249,603.28,601.43,0.30515534]
[1745546941376,1.26661249,603.28,601.41,0.30515534]
[1745546941575,0.28907376,603.27,601.41,0.30515534]
[1745546941979,0.28907376,603.27,601.4,2.477]
[1745546942179,1.26661249,603.19,601.41,0.30516295]
[1745546943685,0.28907376,603.27,601.42,0.30515972]
[1745546943877,0.28907376,603.27,601.41,0.30515972]
[1745546944081,0.28907376,603.27,601.42,0.30515972]
[1745546944284,1.26661249,603.39,601.43,0.30515972]
[1745546944583,1.26661249,603.39,601.4,2.477]
[1745546944584,0.28906055,603.26,601.4,2.477]
[1745546944884,1.26661249,603.39,601.4,2.477]
[1745546945183,1.26661249,603.38,601.4,2.477]
[1745546945690,0.28906175,603.37,601.4,2.477]
[1745546947291,1.26661249,603.38,601.4,2.477]
[1745546947791,0.28907616,603.37,601.4,2.477]
[1745546950291,1.26661249,603.44,601.4,2.477]
[1745546950592,0.28908577,603.36,601.4,2.477]
[1745546950892,1.26661249,603.44,601.4,2.477]
[1745546951994,1.26661249,603.25,601.4,2.477]
[1745546952493,0.28912179,603.24,601.4,2.477]
[1745546955093,0.28912179,603.24,601.4,3.659]
[1745546955491,1.26661249,603.17,601.4,3.659]
[1745546957198,1.26661249,602.97,601.4,3.659]
[1745546957797,1.26661249,602.97,600.96,1.05417052]
[1745546957997,1.26661249,602.97,600.97,0.30526463]
[1745546960197,1.26661249,602.96,600.97,0.30526463]
[1745546960395,1.26661249,602.96,600.98,0.30526463]
[1745546960593,1.26661249,602.96,600.95,0.30526463]
[1745546960899,1.26661249,602.96,600.96,0.30526463]
[1745546961101,1.26661249,602.96,600.94,0.289135]
[1745546961301,1.26661249,602.96,600.95,0.30527857]
[1745546962596,0.28922752,602.95,600.92,0.30527857]
[1745546962802,0.28922752,602.95,600.91,1.05417052]
[1745546963000,0.28922752,602.95,600.92,0.30527377]
[1745546963400,0.28922752,602.95,600.93,0.30527377]
[1745546963601,0.28922752,602.95,600.9,0.30527377]
[1745546963802,0.28922752,602.95,600.91,0.30527377]
[1745546964002,0.28922752,602.95,600.9,0.30527377]
[1745546964201,0.28922752,602.95,600.91,1.30027377]
[1745546964399,0.28922752,602.95,600.92,0.30527844]
[1745546964598,0.28922752,602.95,600.92,1.43527844]
[1745546964798,0.28922752,602.95,600.93,0.30527844]
[1745546965700,0.28922752,602.95,600.93,1.46927844]
[1745546965899,0.28922752,602.95,600.93,1.164]
[1745546966101,0.28922752,602.95,600.94,0.30528809]
[1745546969202,0.28922752,602.95,600.95,0.30535569]
[1745546969405,0.28922752,602.95,600.96,0.30535569]
[1745546969606,0.28922752,602.95,600.94,0.30535569]
[1745546969802,0.28922752,602.95,600.95,0.30535569]
[1745546970005,0.28922752,602.95,600.94,0.30535569]
[1745546970202,0.28922752,602.95,600.95,0.30535569]
[1745546970507,0.28922752,602.95,600.96,0.30535569]
[1745546970707,0.28922752,602.95,600.94,0.30535569]
[1745546970907,0.28922752,602.95,600.95,0.30535569]
[1745546971205,0.28922752,602.95,600.96,0.30535569]
[1745546971404,0.28922752,602.95,600.94,0.30535569]
[1745546971601,0.28922752,602.95,600.93,1.164]
[1745546974501,1.26661249,603.21,600.93,1.164]
[1745546974808,0.28922512,602.94,600.93,1.164]
[1745546975008,1.26661249,603.74,600.93,1.164]
[1745546976109,0.28916864,603.73,600.93,1.164]
[1745546976911,1.55578113,603.73,600.93,1.164]
[1745546977410,1.26661249,603.73,600.93,1.164]
[1745546977809,0.28916984,603.72,600.93,1.164]
[1745546979318,1.26661249,603.68,600.93,1.164]